bitfinex-derivatives/quotes_ETHF0:USTF0_20241008
["timestamp","ask_amount","ask_price","bid_price","bid_amount"]
[1728430268815,3.19147328,2440.2,2440.1,10.44824632]
[1728430269814,3.19147328,2440.2,2440.1,17.08895984]
[1728430270719,3.19147328,2440.2,2440.1,14.116]
[1728430270917,4.35029771,2440.5,2440.1,14.116]
[1728430270918,0.095,2440.5,2440.1,13.706]
[1728430271113,5.59862992,2440.6,2440.3,0.40995]
[1728430271114,0.4015,2440.6,2440.3,0.40995]
[1728430271312,0.81142,2440.6,2440.4,0.40994]
[1728430272514,0.40993,2440.5,2440.3,0.40996]
[1728430272819,0.40994,2440.5,2440.3,0.40996]
[1728430273416,0.81142,2440.6,2440.3,3.60995]
[1728430274121,0.40993,2440.5,2440.3,3.60995]
[1728430274618,0.81143,2440.6,2440.3,3.60995]
[1728430274817,0.40993,2440.5,2440.3,3.60995]
[1728430275222,0.81142,2440.6,2440.3,3.60995]
[1728430276216,0.81142,2440.6,2440.3,3.2]
[1728430276420,0.40993,2440.5,2440.3,1.88996]
[1728430277114,0.4015,2440.6,2440.3,1.88996]
[1728430277315,0.4015,2440.6,2440.3,1.48]
[1728430277515,0.81142,2440.6,2440.4,0.40995]
[1728430277730,0.81143,2440.6,2440.3,1.88995]
[1728430278120,0.81143,2440.6,2440.4,0.40994]
[1728430278520,0.81143,2440.6,2440.3,1.88996]
[1728430278721,0.4015,2440.6,2440.3,1.48]
[1728430279024,0.4015,2440.6,2440.5,1.48]
[1728430279228,0.4015,2440.6,2440.5,1.88993]
[1728430280926,0.4015,2440.6,2440.5,1.48]
[1728430281123,0.4015,2440.6,2440.2,3.2078]
[1728430281331,0.4015,2440.6,2440.2,4.6878]
[1728430281529,0.4015,2440.6,2440.4,1.48]
[1728430281530,0.40993,2440.5,2440.4,1.48]
[1728430282422,0.4015,2440.6,2440.2,6.4078]
[1728430282623,0.81376,2440.4,2440.2,6.81778]
[1728430282821,0.3971,2440.3,2440.2,6.4078]
[1728430283322,0.3971,2440.3,2440.2,7.40881251]
[1728430283629,0.3971,2440.3,2440.2,6.99883251]
[1728430283828,0.3971,2440.3,2440.2,7.40881251]
[1728430284026,0.3971,2440.3,2440.2,6.99883251]
[1728430284427,0.81375,2440.4,2440.2,9.55135046]
[1728430284630,0.81375,2440.4,2440.3,2.73357046]
[1728430284925,0.4038,2440.4,2440.3,2.73357046]
[1728430285627,0.81375,2440.4,2440.3,2.73357046]
[1728430286631,0.4038,2440.4,2440.3,5.94137046]
[1728430286931,0.4038,2440.4,2440.3,4.39206755]
[1728430287231,0.4038,2440.4,2440.3,5.93161536]
[1728430288331,0.81375,2440.4,2440.3,5.93161536]
[1728430289425,0.3925,2440.5,2440.3,9.13161536]
[1728430289630,0.3925,2440.5,2440.4,3.13376536]
[1728430290333,0.3925,2440.5,2440.4,0.40995]
[1728430290521,0.3925,2440.5,2440.4,3.13392733]
[1728430291429,0.7902,2440.6,2440.5,0.40993]
[1728430291628,0.7902,2440.6,2440.5,6.97416095]
[1728430291829,0.7902,2440.6,2440.5,6.56423095]
[1728430292336,0.7902,2440.6,2440.5,4.55741107]
[1728430292524,0.7902,2440.6,2440.5,6.33393808]
[1728430293132,0.7902,2440.6,2440.5,6.97417895]
[1728430293330,0.7902,2440.6,2440.5,6.33393808]
[1728430293830,1.20011,2440.6,2440.5,3.2]
[1728430294029,1.20011,2440.6,2440.5,2.72409801]
[1728430295228,1.20011,2440.6,2440.5,1.53970757]
[1728430296628,1.20011,2440.6,2440.5,1.94963757]
[1728430296824,1.20011,2440.6,2440.5,1.53970757]
[1728430297437,1.20011,2440.6,2440.5,1.94963757]
[1728430298740,1.20011,2440.6,2440.5,4.95788449]
[1728430299533,1.20011,2440.6,2440.5,4.54795449]
[1728430299738,1.20011,2440.6,2440.5,4.95788449]
[1728430299934,1.20011,2440.6,2440.5,4.95788678]
[1728430300540,1.20011,2440.6,2440.5,4.54795678]
[1728430300541,0.7902,2440.6,2440.5,4.54795678]
[1728430300738,0.7902,2440.6,2440.5,4.95788678]
[1728430302434,0.7902,2440.6,2440.5,6.43788678]
[1728430303037,1.20011,2440.6,2440.5,6.43788678]
[1728430303239,1.20011,2440.6,2440.5,6.02795678]
[1728430303440,1.20011,2440.6,2440.5,5.49014262]
[1728430304639,1.20011,2440.6,2440.5,5.49014704]
[1728430304836,1.20011,2440.6,2440.5,4.0953677]
[1728430305234,1.20011,2440.6,2440.5,2.6153677]
[1728430305235,5.29771,2440.6,2440.5,2.6153677]
[1728430305543,1.20011,2440.6,2440.5,2.6153677]
[1728430306238,1.20011,2440.6,2440.5,0.59219522]
[1728430307837,1.20011,2440.6,2440.4,5.76346013]
[1728430307838,0.7902,2440.6,2440.4,5.76346013]
[1728430308036,1.20011,2440.6,2440.5,0.59224326]
[1728430310640,1.20011,2440.6,2440.5,2.6154071]
[1728430311651,1.20011,2440.6,2440.5,1.66790339]
[1728430311949,1.20011,2440.6,2440.5,2.61542162]
[1728430312946,0.4133,2440.8,2440.5,2.61542162]
[1728430313254,0.3924,2440.7,2440.6,2.48215326]
[1728430313447,0.8023,2440.7,2440.6,2.48215326]
[1728430313648,0.8023,2440.7,2440.6,3.14790339]
[1728430313854,0.8023,2440.7,2440.6,4.09539321]
[1728430314053,0.8023,2440.7,2440.6,2.07224326]
[1728430314253,0.8023,2440.7,2440.6,2.48215326]
[1728430314446,0.8023,2440.7,2440.6,3.14790339]
[1728430314754,0.8023,2440.7,2440.6,3.55781339]
[1728430315340,0.8023,2440.7,2440.6,4.50532136]
[1728430315848,0.8023,2440.7,2440.6,3.55781339]
[1728430316045,0.8023,2440.7,2440.6,4.50531647]
[1728430316247,0.8023,2440.7,2440.6,4.505322]
[1728430316446,0.8023,2440.7,2440.6,3.55781339]
[1728430317852,0.8023,2440.7,2440.6,3.14790339]
[1728430318041,0.8023,2440.7,2440.6,0.59224326]
[1728430318248,0.40991,2440.6,2440.5,2.55566013]
[1728430318444,0.40991,2440.6,2440.5,3.50320723]
[1728430318639,0.40991,2440.6,2440.5,4.0954294]
[1728430322457,4.50751,2440.6,2440.5,2.6154294]
[1728430322772,15.26631559,2440.6,2440.1,1.07566013]
[1728430322961,0.41,2440.1,2440.0,1.07566013]
[1728430323253,1.0249,2440.4,2440.0,1.07566013]
[1728430323254,0.90491559,2440.4,2440.0,1.07566013]
[1728430323463,0.40997,2440.3,2440.2,1.88998]
[1728430323845,0.82526,2440.4,2440.2,1.88998]
[1728430324362,0.40997,2440.3,2440.2,1.48]
[1728430324746,0.4153,2440.4,2440.1,1.8945]
[1728430324948,0.40998,2440.2,2440.1,1.8945]
[1728430325153,0.40998,2440.2,2440.1,2.3045]
[1728430325363,0.40998,2440.2,2440.1,1.48]
[1728430326450,0.81658,2440.3,2440.1,1.88999]
[1728430326758,0.40998,2440.2,2440.1,1.88999]
[1728430327259,0.40998,2440.2,2440.1,1.48]
[1728430329861,0.40998,2440.2,2440.1,1.89]
[1728430330159,0.40998,2440.2,2440.1,1.48]
[1728430330359,0.81657,2440.3,2440.1,1.88999]
[1728430330559,0.4066,2440.3,2440.1,1.48]
[1728430330866,0.40998,2440.2,2440.1,1.48]
[1728430331255,0.81658,2440.3,2440.1,1.88999]
[1728430331456,0.40998,2440.2,2440.1,1.88999]
[1728430332562,0.81658,2440.3,2440.1,1.88999]
[1728430333563,0.40998,2440.2,2440.1,1.88999]
[1728430333860,0.40998,2440.2,2440.1,1.48]
[1728430335362,0.40998,2440.2,2440.1,1.89]
[1728430336360,0.40998,2440.2,2440.1,1.48]
[1728430336961,0.40998,2440.2,2440.1,1.89]
[1728430337160,0.40998,2440.2,2440.1,1.48]
[1728430337561,0.81657,2440.3,2440.1,1.88999]
[1728430338065,0.81657,2440.3,2440.2,0.40998]
[1728430338264,0.81657,2440.3,2440.1,1.88999]
[1728430338851,0.40998,2440.2,2440.1,1.88999]
[1728430339259,0.81657,2440.3,2440.2,0.40998]
[1728430339860,0.81657,2440.3,2440.1,1.48]
[1728430340053,0.81657,2440.3,2440.1,1.88999]
[1728430340456,0.4066,2440.3,2439.9,0.4145]
[1728430340657,0.41003,2439.9,2439.8,0.095]
[1728430340859,0.41003,2439.9,2439.7,0.41006]
[1728430341059,0.8092,2439.8,2439.7,0.41006]
[1728430341668,0.8092,2439.8,2439.7,1.89006]
[1728430342783,0.8092,2439.8,2439.6,1.8695]
[1728430342964,1.2043,2439.8,2439.7,0.41007]
[1728430343961,1.2043,2439.8,2439.7,1.89007]
[1728430343962,0.4194,2439.8,2439.7,1.89007]
[1728430344373,0.81202,2440.0,2439.8,0.41004]
[1728430344669,1.21202,2440.0,2439.8,0.41004]
[1728430345267,1.21202,2440.0,2439.9,1.48]
[1728430346167,1.21202,2440.0,2439.9,1.89003]
[1728430346368,1.21202,2440.0,2439.9,1.48]
[1728430346571,0.095,2440.3,2439.9,1.89003]
[1728430346866,4.173,2440.4,2440.3,0.40997]
[1728430347166,0.8393,2440.6,2440.5,0.40993]
[1728430347367,0.4099,2440.7,2440.6,0.40991]
[1728430347966,0.4099,2440.7,2440.5,1.88992]
[1728430348271,0.4099,2440.7,2440.6,0.40991]
[1728430348465,0.4099,2440.7,2440.5,0.40992]
[1728430348871,0.40991,2440.6,2440.5,0.80202]
[1728430349068,0.4099,2440.7,2440.5,0.80202]
[1728430349772,0.4185,2440.8,2440.5,0.3921]
[1728430350076,0.82839,2440.8,2440.6,0.40991]
[1728430350373,0.4185,2440.8,2440.6,0.40991]
[1728430350675,0.82839,2440.8,2440.6,0.40991]
[1728430351369,0.4185,2440.8,2440.5,0.8013]
[1728430351565,0.4185,2440.8,2440.7,0.4099]
[1728430352771,0.8393,2440.9,2440.8,0.40988]
[1728430354477,0.82415,2441.0,2440.8,0.40988]
[1728430355271,4.268,2441.4,2441.2,0.40981]
[1728430355468,3.61758,2441.5,2441.3,0.80609]
[1728430355677,3.2078,2441.5,2441.3,0.3963]
[1728430355874,0.40982,2441.2,2441.0,3.60984]
[1728430356071,3.2078,2441.5,2441.0,3.5963]
[1728430356476,0.40981,2441.3,2441.1,0.40983]
[1728430357779,0.40979,2441.4,2441.2,3.60981]
[1728430358380,3.2078,2441.5,2441.2,3.2]
[1728430358381,0.4098,2441.3,2441.2,3.2]
[1728430358780,3.2078,2441.5,2441.2,3.2]
[1728430358982,0.4098,2441.3,2441.2,3.2]
[1728430363783,0.4098,2441.3,2441.0,0.3963]
[1728430363784,0.40983,2441.2,2441.0,4.00614]
[1728430363982,0.40983,2441.1,2441.0,4.00614]
[1728430364289,0.4213,2441.1,2441.0,4.00614]
[1728430364981,0.4213,2441.1,2440.9,3.2078]
[1728430365184,0.8265,2441.0,2440.9,3.61766]
[1728430365490,1.23635,2441.0,2440.9,3.61766]
[1728430365783,3.2078,2441.5,2440.9,3.2078]
[1728430365989,1.2478,2441.4,2441.0,3.2]
[1728430366181,0.40983,2441.1,2441.0,3.60985]
[1728430366379,1.2478,2441.4,2440.9,3.2078]
[1728430366575,0.40983,2441.2,2440.9,3.2078]
[1728430366785,1.2478,2441.4,2440.9,3.61766]
[1728430366786,0.40985,2441.0,2440.9,3.61766]
[1728430366990,0.40985,2441.0,2440.9,3.2078]
[1728430367690,1.02452,2441.3,2440.9,3.61766]
[1728430367887,0.40984,2441.1,2440.9,3.61766]
[1728430368190,0.40984,2441.1,2441.0,3.2]
[1728430368391,1.02452,2441.3,2440.9,6.4078]
[1728430368696,0.40984,2441.1,2440.9,6.81766]
[1728430368895,0.40985,2441.0,2440.9,6.81766]
[1728430369088,0.40985,2441.0,2440.9,6.4078]
[1728430369684,1.02452,2441.3,2440.9,6.81766]
[1728430369685,0.40984,2441.1,2440.9,6.81766]
[1728430369881,0.40985,2441.0,2440.9,6.81766]
[1728430370389,0.40985,2441.0,2440.9,4.6878]
[1728430371488,0.40985,2441.0,2440.9,5.09766]
[1728430371791,0.40985,2441.0,2440.9,4.6878]
[1728430373384,1.02452,2441.3,2440.9,4.6878]
[1728430373589,0.40985,2441.0,2440.9,3.2078]
[1728430374091,1.02452,2441.3,2440.9,3.61766]
[1728430374092,0.40984,2441.1,2440.9,3.61766]
[1728430374288,0.40984,2441.1,2441.0,1.48]
[1728430375187,0.40984,2441.1,2441.0,1.8662]
[1728430376693,0.40981,2441.2,2441.1,0.40983]
[1728430377988,0.40981,2441.2,2441.0,2.27604]
[1728430378193,0.40981,2441.2,2441.1,0.40983]
[1728430379490,0.40981,2441.2,2441.0,2.27603]
[1728430380792,0.40982,2441.2,2441.0,1.8662]
[1728430381094,5.48008,2441.4,2441.0,1.8662]
[1728430381292,0.40983,2441.2,2441.0,2.27604]
[1728430381698,5.48008,2441.4,2441.0,2.27604]
[1728430381893,0.40983,2441.1,2441.0,2.27604]
[1728430382493,0.40986,2440.9,2440.8,3.61767]
[1728430382693,0.40986,2440.9,2440.8,5.09767]
[1728430382895,1.23266,2441.0,2440.9,0.40986]
[1728430383895,1.23266,2441.0,2440.9,1.88986]
[1728430384091,0.40984,2441.1,2440.9,1.88986]
[1728430384292,0.095,2441.4,2441.3,0.4098]
[1728430384496,0.40972,2441.8,2441.6,0.40975]
[1728430384695,0.40974,2441.7,2441.5,1.48]
[1728430384893,0.79764,2441.7,2441.5,1.48]
[1728430385089,0.79764,2441.7,2441.5,1.88976]
[1728430385499,0.40975,2441.6,2441.5,1.48]
[1728430386001,0.40976,2441.6,2441.4,2.3091]
[1728430386202,0.40976,2441.6,2441.4,2.71888]
[1728430388195,0.40976,2441.6,2441.4,2.3091]
[1728430388699,0.40976,2441.6,2441.5,0.40976]
[1728430389096,1.18474,2441.7,2441.4,2.3091]
[1728430389496,1.18474,2441.7,2441.6,0.40975]
[1728430390001,1.18474,2441.7,2441.5,0.40975]
[1728430390603,1.18474,2441.7,2441.6,0.40975]
[1728430391100,1.18474,2441.7,2441.5,0.40975]
[1728430391903,1.18474,2441.7,2441.5,1.48]
[1728430392102,1.18473,2441.7,2441.6,0.40975]
[1728430392400,0.775,2441.7,2441.6,0.40975]
[1728430392601,1.18473,2441.7,2441.6,0.40975]
[1728430392992,0.775,2441.7,2441.6,0.40975]
[1728430394198,0.775,2441.7,2441.5,1.48]
[1728430394397,0.775,2441.7,2441.6,0.40975]
[1728430399010,1.18473,2441.7,2441.6,0.40975]
[1728430400208,0.775,2441.7,2441.6,0.40975]
[1728430400411,0.81731,2441.8,2441.6,4.0952]
[1728430400599,3.2078,2441.9,2441.8,0.40971]
[1728430401903,1.58858,2442.1,2441.9,0.4097]
[1728430402108,1.58858,2442.1,2441.9,1.8897]
[1728430402309,1.58858,2442.1,2442.0,0.40968]
[1728430402509,0.40968,2442.0,2441.9,1.88968]
[1728430406819,0.50462,2442.4,2442.0,0.40968]
[1728430407019,0.50462,2442.4,2442.2,0.40963]
[1728430407020,0.4236,2442.3,2442.2,0.40963]
[1728430407422,0.83323,2442.3,2442.2,0.40963]
[1728430407611,0.4236,2442.3,2442.1,1.48]
[1728430407918,0.40967,2442.1,2441.9,1.88969]
[1728430408223,0.7833,2442.0,2441.9,1.88969]
[1728430408424,1.2069,2442.0,2441.9,1.88969]
[1728430411615,1.2069,2442.0,2441.7,0.3975]
[1728430411811,0.4097,2441.9,2441.8,1.48]
[1728430416123,1.2069,2442.0,2441.9,0.4097]
[1728430416515,1.2069,2442.0,2441.8,1.48]
[1728430416717,1.2069,2442.0,2441.8,1.8897]
[1728430416718,1.61658,2442.0,2441.8,1.8897]
[1728430416921,1.2069,2442.0,2441.9,0.4097]
[1728430417214,1.2069,2442.0,2441.8,1.48]
[1728430417415,1.2069,2442.0,2441.9,0.7921]
[1728430419727,0.4236,2442.0,2441.9,0.7921]
[1728430420220,0.7784,2442.3,2441.9,4.4776]
[1728430420422,0.3999,2442.2,2442.1,1.88966]
[1728430423836,0.3999,2442.2,2442.1,5.98406]
[1728430424124,0.40965,2442.2,2442.1,5.98405]
[1728430424327,0.7784,2442.3,2442.2,0.40965]
[1728430424328,0.3906,2442.3,2442.2,0.40965]
[1728430424633,0.80024,2442.3,2442.2,1.88965]
[1728430426431,0.3906,2442.3,2442.2,1.88965]
[1728430426736,0.80023,2442.3,2442.2,1.88965]
[1728430427625,0.80023,2442.3,2442.2,1.48]
[1728430427822,0.3906,2442.3,2442.0,1.48]
[1728430428030,0.40967,2442.1,2442.0,1.88967]
[1728430428429,0.80327,2442.1,2442.0,1.48]
[1728430429031,0.80327,2442.1,2442.0,1.88968]
[1728430430831,0.79685,2442.2,2442.0,5.98488]
[1728430431033,0.79685,2442.2,2442.1,2.31346]
[1728430433737,0.79685,2442.2,2442.1,1.48]
[1728430434041,0.3872,2442.2,2441.9,4.6878]
[1728430434237,0.40968,2442.1,2441.9,5.09749]
[1728430434742,0.40968,2442.0,2441.9,5.09749]
[1728430434941,0.40968,2442.0,2441.9,3.2078]
[1728430435137,0.40968,2442.0,2441.6,2.55263417]
[1728430435138,0.40973,2441.7,2441.6,2.55263417]
[1728430435432,0.40973,2441.7,2441.6,2.06657534]
[1728430435835,0.40973,2441.7,2441.6,0.58657534]
[1728430436033,0.40973,2441.7,2441.6,1.48]
[1728430436234,2.23537,2441.9,2441.5,3.2078]
[1728430436433,0.83335,2441.6,2441.5,3.2078]
[1728430437138,4.5196,2441.6,2441.3,1.07263417]
[1728430437338,0.4098,2441.3,2441.2,4.28043417]
[1728430437531,0.40979,2441.4,2441.2,3.2078]
[1728430437730,0.4187,2441.3,2441.2,4.6878]
[1728430438333,0.8285,2441.3,2441.2,4.6878]
[1728430438540,0.4187,2441.3,2441.2,4.6878]
[1728430439243,0.40973,2441.7,2441.5,0.40976]
[1728430439432,0.40973,2441.7,2441.6,1.48]
[1728430440644,0.40973,2441.7,2441.6,1.88975]
[1728430441636,0.40973,2441.7,2441.6,1.48]
[1728430441841,0.8239,2441.8,2441.6,1.48]
[1728430442039,1.23363,2441.8,2441.6,1.88974]
[1728430442537,1.23362,2441.8,2441.6,0.40975]
[1728430442738,1.23362,2441.8,2441.7,0.40973]
[1728430443044,0.095,2442.1,2441.7,3.2]
[1728430443247,0.40966,2442.2,2442.1,0.40966]
[1728430443735,7.27225788,2442.3,2441.9,3.6035]
[1728430443940,0.40966,2442.1,2442.0,0.40967]
[1728430444341,0.40966,2442.1,2441.9,3.6035]
[1728430444547,0.40965,2442.2,2441.9,3.6035]
[1728430444949,7.68189788,2442.3,2442.1,0.40965]
[1728430445133,7.68189788,2442.3,2441.9,3.6035]
[1728430445336,1.2385,2442.3,2442.2,0.40965]
[1728430445547,0.8226,2442.3,2442.2,0.40965]
[1728430445937,1.23223,2442.3,2442.1,3.60965]
[1728430446240,1.23223,2442.3,2442.2,0.40965]
[1728430446241,0.8226,2442.3,2442.2,0.40965]
[1728430446947,1.23223,2442.3,2442.2,0.40965]
[1728430447350,1.23223,2442.3,2442.1,3.60965]
[1728430447847,0.8226,2442.3,2442.1,3.60965]
[1728430448038,1.23224,2442.3,2442.1,3.60965]
[1728430449243,0.8226,2442.3,2442.1,3.2]
[1728430449549,1.23224,2442.3,2442.1,3.2]
[1728430450148,1.23224,2442.3,2442.1,3.60965]
[1728430450547,1.23224,2442.3,2442.1,3.2]
[1728430450852,0.40965,2442.2,2442.1,3.2]
[1728430451051,1.23224,2442.3,2442.1,3.60966]
[1728430453646,1.42528,2442.6,2442.1,3.2]
[1728430453852,0.40961,2442.4,2442.3,3.60963]
[1728430454142,0.4096,2442.5,2442.3,3.60963]
[1728430454341,0.40961,2442.4,2442.3,3.2]
[1728430455056,0.40961,2442.4,2442.3,3.60963]
[1728430455352,0.40961,2442.4,2442.3,7.70403]
[1728430455544,0.40961,2442.5,2442.3,7.70402]
[1728430455741,0.40961,2442.4,2442.3,3.60962]
[1728430455945,0.40961,2442.4,2442.3,3.2]
[1728430457258,0.40964,2442.3,2442.2,0.40965]
[1728430457444,0.80884,2442.3,2442.1,3.60965]
[1728430460057,0.3992,2442.3,2442.2,0.40965]
[1728430460259,0.80883,2442.3,2442.2,0.40965]
[1728430460456,0.3992,2442.3,2442.2,0.40965]
[1728430461060,0.80883,2442.3,2442.2,0.40965]
[1728430463952,0.40963,2442.3,2442.2,0.40965]
[1728430464160,0.40963,2442.3,2442.2,0.80555]
[1728430464462,0.40963,2442.3,2442.2,2.28555]
[1728430465153,0.40963,2442.4,2442.2,2.28555]
[1728430465961,0.4069,2442.5,2442.3,0.3844]
[1728430466166,0.3963,2442.6,2442.5,0.4096]
[1728430466361,0.3963,2442.6,2442.4,1.48]
[1728430466362,0.40957,2442.7,2442.4,1.48]
[1728430466563,0.40957,2442.7,2442.6,1.48]
[1728430467161,0.4069,2442.8,2442.6,1.48]
[1728430467359,0.40956,2442.7,2442.6,1.48]
[1728430468168,0.81645,2442.8,2442.6,1.88957]
[1728430468359,0.40956,2442.7,2442.6,1.896]
[1728430471667,4.0936,2442.7,2442.3,3.2078]
[1728430471865,0.4061,2442.6,2442.1,1.575]
[1728430472164,0.4061,2442.6,2442.5,1.48]
[1728430472165,0.81568,2442.6,2442.5,1.48]
[1728430473370,0.81568,2442.6,2442.3,1.48]
[1728430473371,0.4096,2442.5,2442.3,1.48]
[1728430473573,0.79781,2442.4,2442.3,1.48]
[1728430474360,0.3882,2442.4,2442.1,1.48]
[1728430474569,0.40966,2442.2,2442.1,1.48]
[1728430477670,0.40964,2442.3,2442.1,1.88966]
[1728430478378,0.3963,2442.2,2442.1,1.88966]
[1728430481779,0.80596,2442.2,2442.0,2.70067]
[1728430481975,0.4016,2442.1,2442.0,2.70067]
[1728430482277,0.4016,2442.1,2442.0,1.88967]
[1728430485389,0.4016,2442.1,2442.0,2.47580164]
[1728430486680,0.4016,2442.1,2442.0,3.54843581]
[1728430488384,0.4016,2442.1,2442.0,5.87981275]
[1728430489183,0.4016,2442.1,2442.0,6.41612984]
[1728430491197,0.4016,2442.1,2442.0,4.80717858]
[1728430492485,0.4016,2442.1,2442.0,6.95300891]
[1728430492792,0.4016,2442.1,2442.0,4.80774056]
[1728430493290,0.4016,2442.1,2442.0,6.95300891]
[1728430493685,0.4016,2442.1,2442.0,4.80774056]
[1728430494796,0.4016,2442.1,2442.0,6.95300891]
[1728430495092,0.3963,2442.2,2442.1,0.40966]
[1728430495295,0.3963,2442.2,2442.1,6.41901575]
[1728430495595,0.3963,2442.2,2442.1,6.80518287]
[1728430496092,0.3963,2442.2,2442.1,5.27885081]
[1728430496387,0.4104,2442.3,2442.2,0.40965]
[1728430496592,0.4104,2442.3,2442.2,4.40330779]
[1728430496784,0.4104,2442.3,2442.2,3.01020217]
[1728430497387,0.4104,2442.3,2442.2,4.40348067]
[1728430497588,0.4104,2442.3,2442.2,4.40348604]
[1728430498994,0.3882,2442.4,2442.3,0.40963]
[1728430499295,0.3882,2442.4,2442.3,3.55090143]
[1728430499693,0.3882,2442.4,2442.3,3.55094726]
[1728430500198,0.3882,2442.4,2442.3,3.14131726]
[1728430500393,0.79781,2442.4,2442.3,2.06709629]
[1728430500595,4.89221,2442.4,2442.3,0.58709629]
[1728430501096,0.40963,2442.3,2442.2,1.48]
[1728430501297,0.40963,2442.3,2442.2,2.06712458]
[1728430501497,0.3882,2442.4,2442.2,2.06712458]
[1728430501698,0.79781,2442.4,2442.3,0.5871118]
[1728430501888,0.3882,2442.4,2442.2,1.48]
[1728430502088,0.40963,2442.3,2442.2,1.48]
[1728430502298,0.40963,2442.3,2442.2,0.58711851]
[1728430505308,11.98403,2442.3,2442.2,0.58711851]
[1728430505600,0.4097,2441.9,2441.8,0.095]
[1728430505801,2.50423,2442.0,2441.6,2.68550616]
[1728430506102,1.20202,2441.8,2441.6,2.96397097]
[1728430506498,3.61747,2442.1,2441.9,0.40969]
[1728430506695,0.40966,2442.2,2441.9,1.88969]
[1728430506891,0.40966,2442.1,2442.0,0.8282]
[1728430507899,0.40966,2442.1,2441.8,1.48]
[1728430507900,0.4097,2441.9,2441.8,1.48]
[1728430508297,0.4005,2442.0,2441.6,1.07422097]
[1728430508298,0.40973,2441.7,2441.6,2.96397097]
[1728430508502,0.40972,2441.8,2441.6,1.88975]
[1728430508704,1.18911,2441.9,2441.7,0.40972]
[1728430508998,0.7794,2441.9,2441.6,2.55422097]
[1728430509202,0.40972,2441.8,2441.6,1.48]
[1728430509398,0.40972,2441.8,2441.6,1.88974]
[1728430510609,0.40973,2441.7,2441.6,1.48]
[1728430510808,0.79383,2441.7,2441.6,1.48]
[1728430511604,0.3841,2441.7,2441.6,1.48]
[1728430512409,0.3841,2441.7,2441.6,1.88975]
[1728430512904,0.79383,2441.7,2441.6,1.48]
[1728430513405,0.40975,2441.6,2441.5,0.4192]
[1728430513803,0.40975,2441.6,2441.4,2.96400097]
[1728430513999,0.3841,2441.7,2441.4,2.96400097]
[1728430514202,0.79384,2441.7,2441.5,2.96397097]
[1728430514512,0.79384,2441.7,2441.5,1.88975]
[1728430515504,0.40975,2441.6,2441.5,1.48]
[1728430515705,0.40976,2441.5,2441.4,1.48]
[1728430515908,0.79976,2441.5,2441.4,1.48]
[1728430516112,0.39,2441.5,2441.4,1.48]
[1728430516410,0.39,2441.5,2441.4,1.88978]
[1728430516611,0.79384,2441.7,2441.5,0.40976]
[1728430516806,0.3841,2441.7,2441.5,1.88976]
[1728430517002,0.3841,2441.7,2441.6,0.4157]
[1728430517420,0.79383,2441.7,2441.6,0.4157]
[1728430517907,0.3841,2441.7,2441.6,0.4157]
[1728430518106,7.48175615,2442.4,2441.6,0.4157]
[1728430518316,0.4007,2442.0,2441.9,0.4097]
[1728430518508,0.4007,2442.0,2441.7,0.3838]
[1728430518812,0.4007,2442.0,2441.9,0.4097]
[1728430520014,0.4007,2442.0,2441.9,1.8897]
[1728430520512,0.81038,2442.0,2441.9,1.8897]
[1728430522205,0.4007,2442.0,2441.7,1.8638]
[1728430522408,0.4007,2442.0,2441.7,2.27352]
[1728430522409,0.4097,2441.9,2441.7,2.27352]
[1728430522607,0.40971,2441.8,2441.7,0.79352]
[1728430523001,0.40971,2441.8,2441.7,0.3838]
[1728430523202,0.40971,2441.8,2441.5,1.07422097]
[1728430523203,0.40974,2441.7,2441.5,0.40976]
[1728430523509,0.40975,2441.6,2441.5,0.40976]
[1728430523706,0.40975,2441.6,2441.4,2.71377]
[1728430524305,0.8293,2441.7,2441.4,2.304]
[1728430524502,0.40976,2441.5,2441.4,2.304]
[1728430525214,0.40976,2441.5,2441.4,0.824]
[1728430525410,0.40976,2441.5,2441.4,2.304]
[1728430525611,0.8293,2441.7,2441.4,2.304]
[1728430525913,0.40976,2441.6,2441.4,2.304]
[1728430526514,0.40976,2441.5,2441.4,0.824]
[1728430531406,4.096,2441.5,2441.3,3.2078]
[1728430531721,1.24058,2441.4,2441.3,3.2078]
[1728430532221,5.33658,2441.4,2441.3,3.2078]
[1728430532417,4.9268,2441.4,2441.1,0.4073]
[1728430532609,0.4212,2441.3,2441.1,0.4073]
[1728430532813,0.83101,2441.3,2441.1,0.4073]
[1728430533311,0.40981,2441.2,2441.1,0.4073]
[1728430536021,0.40983,2441.1,2441.0,3.2078]
[1728430536216,0.82423,2441.1,2441.0,3.2078]
[1728430538316,0.40985,2441.0,2440.9,0.3915]
[1728430538710,0.4144,2441.1,2440.7,5.4804]
[1728430538915,0.79777,2440.9,2440.7,5.8903]
[1728430539517,0.79777,2440.9,2440.7,5.4804]
[1728430540024,0.79777,2440.9,2440.7,5.8903]
[1728430540223,0.79777,2440.9,2440.7,5.4804]
[1728430541523,0.79777,2440.9,2440.7,5.8903]
[1728430542023,0.79777,2440.9,2440.8,1.48]
[1728430545432,3.2078,2441.3,2440.8,1.48]
[1728430545621,0.40979,2441.4,2441.2,1.88981]
[1728430545828,0.40979,2441.4,2441.3,0.7993]
[1728430546132,0.40979,2441.4,2441.3,0.4074]
[1728430547029,3.2078,2441.6,2441.3,2.29719]
[1728430547232,3.2078,2441.6,2441.3,1.8874]
[1728430547233,0.40978,2441.4,2441.3,1.8874]